lending/lending_fUSD_20250406
["ID","MTS","AMOUNT","RATE_DAILY","PERIOD"]
[357261019,1743961843828,-500.0,0.00053889,120]
[357261020,1743961843838,-631.18951325,0.00053889,120]
[357261021,1743961843848,-500.0,0.00053889,120]
[357261022,1743961843858,-500.0,0.00053889,120]
[357261023,1743961843867,-500.0,0.00053889,120]
[357261024,1743961843877,-543.1034946,0.00053889,120]
[357261025,1743961843887,-500.74695022,0.00053889,120]
[357261026,1743961843897,-526.0573389,0.00053889,120]
[357261027,1743961843908,-531.49257847,0.00053889,120]
[357261028,1743961843918,-500.0,0.00053889,120]
[357261029,1743961843927,-500.0,0.00053889,120]
[357261030,1743961843937,-500.0,0.00053889,120]
[357261031,1743961843946,-500.0,0.00053889,120]
[357261032,1743961843956,-500.0,0.00053889,120]
[357261033,1743961843965,-500.0,0.00053889,120]
[357261034,1743961843974,-516.40921692,0.00053889,120]
[357261035,1743961843985,-500.0,0.00053889,120]
[357261036,1743961843994,-524.12972002,0.00053889,120]
[357261037,1743961844004,-520.4195599,0.00053889,120]
[357261038,1743961844014,-500.0,0.00053889,120]
[357261039,1743961844024,-500.0,0.00053889,120]
[357261040,1743961844127,-326.68654587,0.00053889,120]
[357261041,1743961844137,-527.10780589,0.00053889,120]
[357261042,1743961844147,-500.0,0.00053889,120]
[357261043,1743961844162,-500.0,0.00053889,120]
[357261044,1743961844172,-500.0,0.00053889,120]
[357261045,1743961844182,-570.02002528,0.00053889,120]
[357261046,1743961844192,-513.20056632,0.00053889,120]
[357261047,1743961844203,-501.62118501,0.00053889,120]
[357261048,1743961844212,-500.0,0.00053889,120]
[357261049,1743961844221,-500.0,0.00053889,120]
[357261050,1743961844231,-500.0,0.00053889,120]
[357261051,1743961844240,-500.0,0.00053889,120]
[357261052,1743961844251,-500.0,0.00053889,120]
[357261053,1743961844261,-518.37687728,0.00053889,120]
[357261054,1743961844271,-533.28115567,0.00053889,120]
[357261055,1743961844280,-595.29591001,0.00053889,120]
[357261056,1743961844290,-520.56994349,0.00053889,120]
[357261057,1743961844299,-500.0,0.00053889,120]
[357261058,1743961844310,-500.0,0.00053889,120]
[357261059,1743961844319,-514.20713652,0.00053889,120]
[357261060,1743961844328,-500.0,0.00053889,120]
[357261061,1743961844337,-500.0,0.00053889,120]
[357261062,1743961844347,-507.68223878,0.00053889,120]
[357261063,1743961844356,-500.0,0.00053889,120]
[357261064,1743961844365,-500.0,0.00053889,120]
[357261065,1743961844375,-502.21151907,0.00053889,120]
[357261066,1743961844384,-555.94,0.00053889,120]
[357261067,1743961844393,-500.0,0.00053889,120]
[357261068,1743961844403,-527.27296904,0.00053889,120]
[357261069,1743961844415,-527.04973202,0.00053889,120]
[357261070,1743961844424,-564.45441503,0.00053889,120]
[357261071,1743961844434,-538.07330806,0.00053889,120]
[357261072,1743961844443,-500.0,0.00053889,120]
[357261073,1743961844452,-516.08191238,0.00053889,120]
[357261074,1743961844462,-512.0423385,0.00053889,120]
[357261075,1743961844471,-520.04387821,0.00053889,120]
[357261076,1743961844480,-494.84383345,0.00053889,120]
[357261077,1743961844489,-500.0,0.00053889,120]
[357261078,1743961844499,-518.59789719,0.00053889,120]
[357261079,1743961844508,-500.0,0.00053889,120]
[357261080,1743961844518,-530.04836668,0.00053889,120]
[357261081,1743961844528,-500.0,0.00053889,120]
[357261082,1743961844537,-514.1957714,0.00053889,120]
[357261083,1743961844546,-510.24806087,0.00053889,120]
[357261084,1743961844555,-522.20560733,0.00053889,120]
[357261085,1743961844565,-500.0,0.00053889,120]
[357261086,1743961844574,-517.90544488,0.00053889,120]
[357261087,1743961844583,-541.44009872,0.00053889,120]
[357261088,1743961844592,-500.0,0.00053889,120]
[357261089,1743961844601,-500.0,0.00053889,120]
[357261090,1743961844611,-540.4523957,0.00053889,120]
[357261091,1743961844621,-512.28832275,0.00053889,120]
[357261092,1743961844630,-500.0,0.00053889,120]
[357261093,1743961844639,-500.0,0.00053889,120]
[357261094,1743961844648,-500.0,0.00053889,120]
[357261095,1743961844660,-500.0,0.00053889,120]
[357261096,1743961844669,-500.0,0.00053889,120]
[357261097,1743961844679,-513.08223959,0.00053889,120]
[357261098,1743961844689,-500.0,0.00053889,120]
[357261099,1743961844698,-512.8071347,0.00053889,120]
[357261100,1743961844708,-500.0,0.00053889,120]
[357261101,1743961844718,-262.1442413,0.00053889,120]
[357261102,1743961844728,-510.4230224,0.00053889,120]
[357261103,1743961844738,-440.09821255,0.00053889,120]
[357261104,1743961844748,-510.44355537,0.00053889,120]
[357261105,1743961844757,-401.04819987,0.00053889,120]
[357261106,1743961844767,-521.84326805,0.00053889,120]
[357261107,1743961844776,-500.0,0.00053889,120]
[357261108,1743961844786,-504.04023717,0.00053889,120]
[357261109,1743961844796,-500.0,0.00053889,120]
[357261110,1743961844805,-553.85253453,0.00053889,120]
[357261111,1743961844815,-500.0,0.00053889,120]
[357261112,1743961844824,-205.31200498,0.00053889,120]
[357261113,1743961844834,-514.15475309,0.00053889,120]
[357261114,1743961844843,-500.000001,0.00053889,120]
[357261115,1743961844853,-227.75,0.00053889,7]
[357261116,1743961844862,-500.0,0.00053889,120]
[357261117,1743961844872,-500.0,0.00053889,120]
[357261118,1743961844881,-500.0,0.00053889,120]
[357261119,1743961844891,-530.64821313,0.00053889,120]
[357261120,1743961844901,-500.0,0.00053889,120]
[357261121,1743961844912,-500.000001,0.00053889,120]
[357261122,1743961844922,-500.0,0.00053889,120]
[357261123,1743961844932,-500.0,0.00053889,120]
[357261124,1743961844942,-526.80793703,0.00053889,120]
[357261125,1743961844952,-500.0,0.00053889,120]
[357261126,1743961844961,-500.0,0.00053889,120]
[357261127,1743961844972,-500.0,0.00053889,120]
[357261128,1743961844981,-500.0,0.00053889,120]
[357261129,1743961844991,-500.29359769,0.00053889,120]
[357261130,1743961845001,-151.0,0.00053889,120]
[357261131,1743961845011,-514.95265563,0.00053889,10]
[357261132,1743961845020,-513.33370699,0.00053889,120]
[357261133,1743961845029,-500.0,0.00053889,120]
[357261134,1743961845039,-528.90640751,0.00053889,120]
[357261135,1743961845049,-502.45566965,0.00053889,120]
[357261136,1743961845059,-1000.0,0.00053889,120]
[357261137,1743961845069,-522.45645871,0.00053889,120]
[357261138,1743961845078,-527.08386917,0.00053889,120]
[357261139,1743961845088,-500.0,0.00053889,120]
[357261140,1743961845098,-500.0,0.00053889,120]
[357261141,1743961845107,-500.0,0.00053889,120]
[357261142,1743961845117,-531.62919031,0.00053889,120]
[357261143,1743961845127,-1500.0,0.00053889,120]
[357261144,1743961845136,-396.167377,0.00053889,120]
[357261145,1743961845146,-1037.69,0.00053889,120]
[357261146,1743961845157,-500.0,0.00053889,120]
[357261147,1743961845169,-500.0,0.00053889,120]
[357261148,1743961845181,-396.167377,0.00053889,120]
[357261149,1743961845191,-500.0,0.00053889,120]
[357261150,1743961845203,-542.75644746,0.00053889,120]
[357261151,1743961845213,-366.17326325,0.00053889,120]
[357261152,1743961845222,-500.0,0.00053889,120]
[357261153,1743961845232,-1297.34,0.00053889,8]
[357261154,1743961845242,-151.0,0.00053889,120]
[357261155,1743961845255,-500.0,0.00053889,120]
[357261156,1743961845265,-513.57836974,0.00053889,120]
[357261157,1743961845275,-520.9268759,0.00053889,120]
[357261158,1743961845285,-507.08228718,0.00053889,120]
[357261159,1743961845295,-1311.704944,0.00053889,120]
[357261161,1743961845305,-500.0,0.00053889,120]
[357261162,1743961845315,-543.2099774,0.00053889,120]
[357261164,1743961845325,-500.0,0.00053889,120]
[357261166,1743961845334,-1011.30906242,0.00053889,120]
[357261168,1743961845599,-300.39588158,0.00053889,120]
[357261169,1743961845608,-500.0,0.00053889,120]
[357261170,1743961845618,-500.0,0.00053889,120]
[357261171,1743961845627,-500.0,0.00053889,120]
[357261172,1743961845636,-515.19692191,0.00053889,120]
[357261173,1743961845646,-572.54825981,0.00053889,120]
[357261174,1743961845655,-509.30790952,0.00053889,120]
[357261175,1743961845665,-500.0,0.00053889,120]
[357261176,1743961845675,-500.0,0.00053889,120]
[357261177,1743961845684,-226.43999335,0.00053889,120]
[357261178,1743961845693,-510.15313689,0.00053889,120]
[357261179,1743961845703,-507.84890357,0.00053889,120]
[357261180,1743961845713,-188.516306,0.00053889,120]
[357261181,1743961845723,-458.49637674,0.00053889,120]
[357261182,1743961845733,-500.0,0.00053889,120]
[357261183,1743961845835,-500.0,0.00053889,120]
[357261184,1743961845845,-505.30203018,0.00053889,120]
[357261185,1743961845854,-188.516306,0.00053889,120]
[357261186,1743961845864,-500.0,0.00053889,120]
[357261187,1743961845873,-500.0,0.00053889,120]
[357261188,1743961845883,-505.03556313,0.00053889,120]
[357261189,1743961845892,-508.1096571,0.00053889,120]
[357261190,1743961845902,-510.61457131,0.00053889,120]
[357261191,1743961845912,-500.0,0.00053889,120]
[357261192,1743961845922,-500.0,0.00053889,120]
[357261193,1743961845931,-500.0,0.00053889,120]
[357261194,1743961845941,-500.0,0.00053889,120]
[357261195,1743961845950,-500.0,0.00053889,120]
[357261196,1743961845960,-500.0,0.00053889,2]
[357261197,1743961845970,-500.0,0.00053889,2]
[357261198,1743961845980,-528.96811443,0.00053889,120]
[357261199,1743961845990,-500.0,0.00053889,120]
[357261200,1743961845999,-208.723073,0.00053889,120]
[357261201,1743961846009,-574.76817396,0.00053889,120]
[357261202,1743961846019,-208.723073,0.00053889,120]
[357261203,1743961846029,-500.0,0.00053889,120]
[357261204,1743961846039,-151.0,0.00053889,120]
[357261205,1743961846049,-500.0,0.00053889,120]
[357261206,1743961846059,-500.0,0.00053889,120]
[357261207,1743961846069,-6121.33574852,0.00053889,7]
[357261208,1743961846245,-124535.87425148,0.00053889,7]
[357261209,1743961846255,-166.1,0.00053889,120]
[357261210,1743961846266,-500.0,0.00053889,120]
[357261211,1743961846276,-500.0,0.00053889,120]
[357261212,1743961846287,-166.1,0.00053889,120]
[357261213,1743961846298,-151.0,0.00053889,120]
[357261214,1743961846308,-510.07057273,0.00053889,120]
[357261215,1743961846318,-515.47706744,0.00053889,120]
[357261216,1743961846328,-500.0,0.00053889,120]
[357261217,1743961846338,-500.0,0.00053889,120]
[357261218,1743961846347,-526.39594509,0.00053889,120]
[357261219,1743961846357,-510.40279047,0.00053889,120]
[357261220,1743961846367,-513.63826832,0.00053889,120]
[357261221,1743961846378,-512.32134645,0.00053889,120]
[357261222,1743961846387,-151.0,0.00053889,120]
[357261223,1743961846398,-523.70402624,0.00053889,120]
[357261224,1743961846407,-512.81751385,0.00053889,120]
[357261225,1743961846421,-150.0,0.00053889,4]
[357261226,1743961846431,-500.0,0.00053889,120]
[357261227,1743961846441,-151.0,0.0005389,120]
[357261228,1743961846451,-151.0,0.0005389,120]
[357261229,1743961846461,-160.513662,0.0005389,120]
[357261230,1743961846471,-349.542721,0.0005389,120]
[357261231,1743961846481,-349.542721,0.0005389,120]
[357261232,1743961846491,-302.410271,0.0005389,120]
[357261233,1743961846500,-302.410271,0.0005389,120]
[357261234,1743961846510,-151.0,0.0005389,120]
[357261235,1743961846520,-151.0,0.0005389,120]
[357261236,1743961846530,-151.0,0.0005389,120]
[357261237,1743961846539,-266.434936,0.0005389,120]
[357261238,1743961846549,-266.434936,0.0005389,120]
[357261239,1743961846558,-151.0,0.0005389,120]
[357261240,1743961846568,-151.0,0.0005389,120]
[357261241,1743961846577,-241.739211,0.0005389,120]
[357261242,1743961846586,-396.167377,0.0005389,120]
[357261243,1743961846596,-396.167377,0.0005389,120]
[357261244,1743961846605,-151.0,0.0005389,120]
[357261245,1743961846616,-1311.704944,0.0005389,120]
[357261246,1743961846625,-1311.704944,0.0005389,120]
[357261247,1743961846635,-1000.0,0.00053899,120]
[357261248,1743961846646,-500.0,0.00053899,120]
[357261249,1743961846656,-500.0,0.00053899,120]
[357261250,1743961846669,-500.0,0.00053899,120]
[357261251,1743961846679,-500.0,0.00053899,120]
[357261252,1743961846689,-500.0,0.00053899,120]
[357261253,1743961846699,-500.0,0.00053899,120]
[357261254,1743961846710,-508.79589522,0.00053899,120]
[357261255,1743961846719,-500.0,0.00053899,120]
[357261256,1743961846729,-500.0,0.00053899,120]
[357261257,1743961846739,-500.0,0.00053899,120]
[357261258,1743961846749,-500.0,0.00053899,120]
[357261259,1743961846759,-500.0,0.00053899,120]
[357261260,1743961846769,-521.29260575,0.00053899,120]
[357261261,1743961846779,-500.0,0.00053899,120]
[357261262,1743961846789,-500.0,0.00053899,120]
[357261263,1743961846798,-500.0,0.00053899,120]
[357261264,1743961846808,-500.0,0.00053899,120]
[357261265,1743961846819,-635.00415681,0.00053899,120]
[357261266,1743961846829,-570.669685,0.00053899,120]
[357261267,1743961846839,-500.0,0.00053899,120]
[357261268,1743961846848,-500.0,0.00053899,120]
[357261269,1743961846857,-500.0,0.00053899,120]
[357261270,1743961846867,-500.0,0.00053899,120]
[357261271,1743961846876,-500.0,0.00053899,120]
[357261272,1743961846886,-500.0,0.00053899,120]
[357261273,1743961846895,-500.0,0.00053899,120]
[357261274,1743961846905,-500.0,0.00053899,120]
[357261275,1743961846915,-524.1616204,0.00053899,120]
[357261276,1743961846924,-500.0,0.00053899,120]
[357261277,1743961846933,-500.0,0.00053899,120]
[357261278,1743961846943,-1166.26,0.00053899,120]
[357261279,1743961846952,-500.0,0.00053899,120]
[357261280,1743961846962,-417.90576532,0.00053899,120]
[357261281,1743961846972,-500.0,0.00053899,120]
[357261282,1743961846982,-500.0,0.00053899,120]
[357261283,1743961846993,-500.0,0.00053899,120]
[357261284,1743961847003,-1083.65210793,0.00053899,120]
[357261285,1743961847013,-500.0,0.00053899,120]
[357261286,1743961847023,-500.0,0.00053899,120]
[357261287,1743961847033,-500.0,0.00053899,120]
[357261288,1743961847043,-500.0,0.00053899,120]
[357261289,1743961847053,-500.0,0.00053899,120]
[357261290,1743961847062,-600.23,0.00053899,120]
[357261291,1743961847072,-500.0,0.00053899,120]
[357261292,1743961847081,-500.0,0.00053899,30]
[357261293,1743961847093,-577.11362987,0.00053899,120]
[357261294,1743961847103,-500.0,0.00053899,120]
[357261295,1743961847113,-946.63,0.00053899,120]
[357261296,1743961847124,-500.0,0.00053899,120]
[357261297,1743961847134,-500.0,0.00053899,120]
[357261298,1743961847145,-151.0,0.00053899,120]
[357261299,1743961847156,-500.0,0.00053899,120]
[357261300,1743961847171,-151.0,0.00053899,120]
[357261301,1743961847180,-151.0,0.00053899,30]
[357261302,1743961847190,-500.0,0.00053899,120]
[357261303,1743961847202,-151.0,0.00053899,120]
[357261304,1743961847212,-381.038786,0.00053899,120]
[357261305,1743961847222,-500.0,0.00053899,120]
[357261306,1743961847231,-151.0,0.00053899,120]
[357261307,1743961847241,-381.038786,0.00053899,120]
[357261308,1743961847253,-500.0,0.00053899,120]
[357261309,1743961847263,-500.0,0.00053899,120]
[357261310,1743961847272,-500.0,0.00053899,120]
[357261311,1743961847282,-500.0,0.00053899,120]
[357261312,1743961847291,-500.0,0.00053899,120]
[357261313,1743961847301,-500.0,0.00053899,120]
[357261314,1743961847315,-500.0,0.00053899,120]
[357261315,1743961847337,-500.0,0.00053899,120]
[357261316,1743961847347,-500.0,0.00053899,120]
[357261317,1743961847356,-500.0,0.00053899,120]
[357261318,1743961847366,-151.0,0.00053899,120]
[357261319,1743961847375,-532.73,0.00053899,120]
[357261320,1743961847385,-500.0,0.00053899,120]
[357261321,1743961847395,-151.0,0.00053899,120]
[357261322,1743961847408,-500.0,0.00053899,120]
[357261323,1743961847422,-500.0,0.00053899,120]
[357261324,1743961847432,-841.35,0.00053899,120]
[357261325,1743961847442,-151.0,0.00053899,120]
[357261326,1743961847452,-508.25,0.00053899,120]
[357261327,1743961847461,-500.0,0.00053899,120]
[357261328,1743961847471,-151.0,0.00053899,120]
[357261329,1743961847485,-500.0,0.00053899,100]
[357261330,1743961847495,-500.0,0.00053899,120]
[357261331,1743961847504,-500.0,0.00053899,120]
[357261332,1743961847513,-500.0,0.00053899,120]
[357261333,1743961847523,-523.69167396,0.00053899,120]
[357261334,1743961847532,-500.0,0.00053899,120]
[357261335,1743961847623,-500.0,0.00053899,120]
[357261336,1743961847633,-500.0,0.00053899,120]
[357261337,1743961847643,-500.0,0.00053899,120]
[357261338,1743961847653,-536.40722169,0.00053899,120]
[357261339,1743961847662,-500.0,0.00053899,120]
[357261340,1743961847673,-1174.33,0.00053899,120]
[357261341,1743961847682,-349.542721,0.00053899,120]
[357261342,1743961847692,-619.16,0.00053899,120]
[357261343,1743961847701,-349.542721,0.00053899,120]
[357261344,1743961847710,-302.410271,0.00053899,120]
[357261345,1743961847720,-302.410271,0.00053899,120]
[357261346,1743961847730,-151.0,0.00053899,120]
[357261347,1743961847739,-506.91715826,0.00053899,120]
[357261348,1743961847749,-151.0,0.00053899,120]
[357261349,1743961847758,-413.67903392,0.00053899,120]
[357261350,1743961847768,-155.564759,0.00053899,120]
[357261352,1743961847777,-639.79093861,0.00053899,120]
[357261354,1743961847786,-266.434936,0.00053899,120]
[357261356,1743961847795,-500.0,0.00053899,120]
[357261358,1743961847805,-266.434936,0.00053899,120]
[357261360,1743961847814,-151.0,0.00053899,120]
[357261362,1743961847823,-151.0,0.00053899,120]
[357261364,1743961847833,-516.51405508,0.00053899,120]
[357261366,1743961847842,-500.0,0.00053899,120]
[357261367,1743961847851,-500.0,0.00053899,120]
[357261369,1743961847860,-500.0,0.00053899,120]
[357261370,1743961847870,-557.73939306,0.00053899,120]
[357261371,1743961847879,-500.0,0.00053899,120]
[357261373,1743961847889,-396.167377,0.00053899,120]
[357261374,1743961847901,-396.167377,0.00053899,120]
[357261375,1743961847912,-500.0,0.00053899,120]
[357261376,1743961847921,-500.0,0.00053899,120]
[357261377,1743961847931,-500.0,0.00053899,120]
[357261378,1743961847940,-500.0,0.00053899,120]
[357261380,1743961847949,-511.79479689,0.00053899,120]
[357261383,1743961847959,-152.143236,0.00053899,120]
[357261385,1743961847968,-500.0,0.00053899,120]
[357261388,1743961847978,-500.0,0.00053899,120]
[357261391,1743961847987,-500.0,0.00053899,120]
[357261394,1743961847996,-500.0,0.00053899,120]
[357261396,1743961848005,-500.0,0.00053899,120]
[357261398,1743961848014,-500.0,0.00053899,120]
[357261400,1743961848023,-1311.704944,0.00053899,120]
[357261402,1743961848033,-500.0,0.00053899,120]
[357261403,1743961848042,-500.0,0.00053899,120]
[357261405,1743961848051,-1311.704944,0.00053899,120]
[357261406,1743961848060,-500.0,0.00053899,120]
[357261408,1743961848070,-500.0,0.00053899,120]
[357261410,1743961848080,-500.0,0.00053899,120]
[357261411,1743961848090,-500.0,0.00053899,120]
[357261413,1743961848100,-500.0,0.00053899,120]
[357261415,1743961848110,-500.0,0.00053899,120]
[357261416,1743961848119,-188.516306,0.00053899,120]
[357261418,1743961848129,-509.21,0.00053899,120]
[357261419,1743961848139,-188.516306,0.00053899,120]
[357261421,1743961848149,-500.0,0.00053899,120]
[357261423,1743961848160,-500.0,0.00053899,120]
[357261424,1743961848170,-594.9822821,0.00053899,120]
[357261426,1743961848182,-500.0,0.00053899,120]
[357261428,1743961848192,-500.0,0.00053899,120]
[357261429,1743961848201,-500.0,0.00053899,2]
[357261431,1743961848213,-500.0,0.00053899,2]
[357261433,1743961848223,-500.0,0.00053899,2]
[357261435,1743961848233,-503.05058535,0.00053899,2]
[357261436,1743961848243,-208.723073,0.00053899,120]
[357261437,1743961848254,-500.0,0.00053899,120]
[357261438,1743961848264,-208.723073,0.00053899,120]
[357261439,1743961848274,-151.0,0.00053899,120]
[357261440,1743961848284,-500.0,0.00053899,120]
[357261441,1743961848293,-500.0,0.00053899,120]
[357261442,1743961848303,-166.1,0.00053899,120]
[357261443,1743961848313,-500.0,0.00053899,120]
[357261444,1743961848322,-166.1,0.00053899,120]
[357261445,1743961848332,-500.0,0.00053899,120]
[357261446,1743961848342,-152.17578,0.00053899,120]
[357261447,1743961848351,-500.0,0.00053899,120]
[357261448,1743961848361,-151.0,0.00053899,120]
[357261449,1743961848371,-500.0,0.00053899,120]
[357261450,1743961848380,-500.0,0.00053899,120]
[357261451,1743961848390,-500.0,0.00053899,120]
[357261452,1743961848399,-500.0,0.00053899,120]
[357261453,1743961848409,-500.0,0.00053899,120]
[357261454,1743961848420,-186074.93858537,0.000539,2]
[357261455,1743961848633,-131390.15156449,0.000539,2]
[357261456,1743961848644,-70421.99999971,0.000539,2]
[357261457,1743961848903,-455.0,0.000485,5]
[357261458,1743961848916,-1494.6,0.000488,120]
[357261459,1743961848924,-403.22426304,0.000488,120]
[357261460,1743961848937,-14911.52083821,0.000488,120]
[357261461,1743961848951,-11230.01220395,0.000488,120]
[357261462,1743961848983,-899.39972749,0.000488,120]
[357261463,1743961848994,-500.0,0.00053899,120]
[357261464,1743961849004,-2650.60027251,0.000539,2]
[357261465,1743961849015,-385.71584499,0.000539,2]
[357261466,1743961849027,-284.59582988,0.000539,2]
[357261467,1743961849039,-614.41905794,0.000539,2]
[357261487,1743962403228,10000.0,0.0003,30]
[357261505,1743962738112,-172.26,0.00026849,2]
[357261506,1743962738132,-250.0,0.00029534,2]
[357261507,1743962738153,-250.0,0.00029748,2]
[357261508,1743962738174,-172.26,0.00032646,2]
[357261509,1743962738193,-416.90952034,0.00033508,2]
[357261510,1743962738213,-183.14586154,0.00033508,30]
[357261511,1743962801275,-1816.85413846,0.00033508,30]
[357261512,1743962825128,-159.97473914,0.0003569,2]
[357261513,1743962825149,-408.99609356,0.0003579,2]
[357261514,1743962825169,-250.0,0.0003589,2]
[357261515,1743962825189,-408.99609355,0.00036759,2]
[357261516,1743962825211,-250.0,0.00036859,2]
[357261517,1743962825234,-250.0,0.00036859,2]
[357261518,1743962825255,-172.26,0.00038443,2]
[357261519,1743962825276,-391.0,0.00038799,4]
[357261520,1743962825297,-400.0,0.00038799,5]
[357261521,1743962825326,-853.52,0.000388,31]
[357261522,1743962825355,-853.52,0.000388,31]
[357261523,1743962825385,-853.52,0.000388,31]
[357261524,1743962825414,-853.52,0.000388,31]
[357261525,1743962825444,-853.52,0.000388,31]
[357261526,1743962825474,-81.94670803,0.000388,31]
[357261527,1743962826097,-244.53201236,0.000388,31]
[357261528,1743962832109,-527.04127961,0.000388,31]
[357261529,1743962832137,-853.52,0.000388,31]
[357261530,1743962832164,-853.52,0.000388,31]
[357261531,1743962832198,-392.21023991,0.000388,31]
[357261532,1743962833103,-461.30976009,0.000388,31]
[357261533,1743962833130,-853.52,0.000388,31]
[357261534,1743962833158,-81.66117929,0.000388,31]
[357261536,1743962853088,-375.61983993,0.000388,31]
[357261572,1743963031772,-396.23898078,0.000388,31]
[357261574,1743963031782,-853.52,0.000388,31]
[357261576,1743963031792,-2240.47815819,0.000392,115]
[357261578,1743963031802,-381.12,0.000393,2]
[357261580,1743963031811,-1489.83,0.000393,30]
[357261581,1743963031821,-1878.004404,0.000393,29]
[357261583,1743963031831,-299.23,0.00039403,30]
[357261585,1743963031841,-1081.47899613,0.00040582,30]
[357261587,1743963031851,-171.0,0.00041,14]
[357261589,1743963031861,-171.0,0.00043151,90]
[357261590,1743963031871,-2240.47815819,0.00043532,120]
[357261592,1743963031881,-672.75137276,0.000442,6]
[357261594,1743963031890,-172.26,0.00044239,2]
[357261596,1743963031901,-1000.0,0.00044298,2]
[357261598,1743963031911,-3295.72,0.00044298,2]
[357261600,1743963031920,-299.99,0.00044298,120]
[357261602,1743963031930,-217.68,0.00044445,2]
[357261603,1743963031940,-1500.0,0.00044474,120]
[357261604,1743963031950,-151.0,0.00045,120]
[357261605,1743963031960,-151.0,0.00045,120]
[357261606,1743963031970,-1197.32,0.00045913,120]
[357261607,1743963031980,-250.0,0.00046,60]
[357261608,1743963031991,-30655.99,0.0004629,2]
[357261609,1743963032001,-150.0,0.0004633,7]
[357261610,1743963032012,-186.16,0.00046395,2]
[357261611,1743963032021,-199.99,0.00046575,30]
[357261612,1743963032032,-1000.0,0.00046685,120]
[357261613,1743963032041,-250.0,0.00047,60]
[357261614,1743963032051,-2000.0,0.00047145,120]
[357261615,1743963032061,-199.99,0.0004726,30]
[357261616,1743963032071,-166.61,0.00047512,2]
[357261617,1743963032081,-2240.47815819,0.00047865,120]
[357261618,1743963032092,-1317.0,0.000479,2]
[357261619,1743963032102,-199.99,0.00047945,30]
[357261620,1743963032113,-150.0,0.00048,73]
[357261621,1743963032123,-250.0,0.00048,60]
[357261622,1743963032132,-350.0,0.0004862,12]
[357261623,1743963032141,-199.99,0.0004863,30]
[357261624,1743963032156,-696.24,0.00048677,2]
[357261625,1743963032164,-3894.89479266,0.00048699,15]
[357261626,1743963032174,-500.0,0.00048752,120]
[357261627,1743963032183,-501.58752862,0.00048753,76]
[357261628,1743963032192,-3289.20438955,0.00048753,15]
[357261629,1743963032201,-297.87200981,0.00048753,27]
[357261630,1743963032210,-168.6270386,0.00048773,7]
[357261631,1743963032219,-506.94451099,0.00048773,10]
[357261632,1743963032228,-229.86193623,0.00048773,2]
[357261633,1743963032237,-289.98355149,0.00048773,10]
[357261634,1743963032246,-475.67031874,0.00048788,120]
[357261635,1743963032255,-500.0,0.00048788,120]
[357261636,1743963032265,-500.0,0.00048788,120]
[357261637,1743963032274,-500.0,0.00048788,120]
[357261638,1743963032284,-500.0,0.00048788,120]
[357261639,1743963032294,-500.0,0.00048788,120]
[357261640,1743963032303,-500.0,0.00048788,120]
[357261641,1743963032313,-500.0,0.00048788,120]
[357261642,1743963032323,-500.0,0.00048788,120]
[357261643,1743963032332,-500.0,0.00048788,120]
[357261644,1743963032342,-500.0,0.00048788,120]
[357261645,1743963032352,-500.0,0.00048788,120]